[Event "Titled Tuesday Blitz December 14 2021"]
[White "Martins, Bruno Andre Leite"]
[Black "Rasulov, Vugar"]
[WhiteFideId "1942255"]
[BlackFideId "13402390"]
[WhiteElo "2137"]
[BlackElo "2560"]
[Result "0-1"]
[Round "05"]
[TimeControl "180+1"]
[Date "2021.12.14"]
[WhiteClock "0:01:11"]
[BlackClock "0:01:08"]

1. e4 {[%clk 0:02:54]}  d5 {[%clk 0:02:56]} 2. exd5 {[%clk 0:02:53]}  Qxd5 {[%clk 0:02:57]} 3. Nc3 {[%clk 0:02:53]}  Qa5 {[%clk 0:02:56]} 4. d4 {[%clk 0:02:54]}  Bf5 {[%clk 0:02:50]} 5. Nf3 {[%clk 0:02:54]}  c6 {[%clk 0:02:48]} 6. Ne5 {[%clk 0:02:54]}  e6 {[%clk 0:02:46]} 7. Bc4 {[%clk 0:02:52]}  Nf6 {[%clk 0:02:44]} 8. g4 {[%clk 0:02:50]}  Be4 {[%clk 0:02:41]} 9. O-O {[%clk 0:02:48]}  Bd5 {[%clk 0:02:41]} 10. Qe2 {[%clk 0:02:47]}  Bb4 {[%clk 0:02:28]} 11. Bd2 {[%clk 0:02:46]}  O-O {[%clk 0:02:25]} 12. a3 {[%clk 0:02:45]}  Bxc3 {[%clk 0:02:25]} 13. Bxc3 {[%clk 0:02:46]}  Qc7 {[%clk 0:02:25]} 14. Bd3 {[%clk 0:02:46]}  Nbd7 {[%clk 0:02:17]} 15. Nxd7 {[%clk 0:02:44]}  Nxd7 {[%clk 0:02:16]} 16. Bd2 {[%clk 0:02:42]}  e5 {[%clk 0:02:11]} 17. dxe5 {[%clk 0:02:27]}  Nxe5 {[%clk 0:02:09]} 18. Bf4 {[%clk 0:02:26]}  Rae8 {[%clk 0:02:03]} 19. Bxe5 {[%clk 0:02:26]}  Rxe5 {[%clk 0:02:03]} 20. Qd2 {[%clk 0:02:25]}  Qe7 {[%clk 0:01:55]} 21. Rae1 {[%clk 0:02:20]}  Re8 {[%clk 0:01:51]} 22. Rxe5 {[%clk 0:02:18]}  Qxe5 {[%clk 0:01:52]} 23. f3 {[%clk 0:02:17]}  Qxb2 {[%clk 0:01:49]} 24. Qb4 {[%clk 0:02:14]}  Qxb4 {[%clk 0:01:46]} 25. axb4 {[%clk 0:02:15]}  Kf8 {[%clk 0:01:43]} 26. c4 {[%clk 0:02:13]}  Be6 {[%clk 0:01:43]} 27. Ra1 {[%clk 0:02:12]}  a6 {[%clk 0:01:41]} 28. b5 {[%clk 0:02:11]}  axb5 {[%clk 0:01:41]} 29. cxb5 {[%clk 0:02:12]}  Rd8 {[%clk 0:01:40]} 30. Be4 {[%clk 0:02:09]}  cxb5 {[%clk 0:01:40]} 31. Rb1 {[%clk 0:02:09]}  Bc4 {[%clk 0:01:32]} 32. Kf2 {[%clk 0:02:07]}  b6 {[%clk 0:01:31]} 33. Bc6 {[%clk 0:02:06]}  Rd2+ {[%clk 0:01:30]} 34. Kg3 {[%clk 0:02:07]}  Rd6 {[%clk 0:01:27]} 35. Bxb5 {[%clk 0:02:07]}  Bxb5 {[%clk 0:01:28]} 36. Rxb5 {[%clk 0:02:07]}  Ke7 {[%clk 0:01:29]} 37. Rb2 {[%clk 0:02:02]}  Kd7 {[%clk 0:01:28]} 38. Ra2 {[%clk 0:02:00]}  Kc6 {[%clk 0:01:26]} 39. h4 {[%clk 0:02:01]}  Rd7 {[%clk 0:01:24]} 40. Rc2+ {[%clk 0:01:58]}  Kb7 {[%clk 0:01:24]} 41. Rb2 {[%clk 0:01:58]}  h6 {[%clk 0:01:22]} 42. g5 {[%clk 0:01:57]}  hxg5 {[%clk 0:01:22]} 43. hxg5 {[%clk 0:01:58]}  g6 {[%clk 0:01:22]} 44. Kf4 {[%clk 0:01:56]}  Rd5 {[%clk 0:01:22]} 45. Re2 {[%clk 0:01:55]}  Rf5+ {[%clk 0:01:22]} 46. Kg4 {[%clk 0:01:56]}  b5 {[%clk 0:01:23]} 47. Re4 {[%clk 0:01:51]}  Kc6 {[%clk 0:01:23]} 48. f4 {[%clk 0:01:49]}  Kc5 {[%clk 0:01:22]} 49. Kf3 {[%clk 0:01:46]}  b4 {[%clk 0:01:23]} 50. Ke3 {[%clk 0:01:46]}  Kb5 {[%clk 0:01:19]} 51. Kd3 {[%clk 0:01:43]}  Ka4 {[%clk 0:01:18]} 52. Kc4 {[%clk 0:01:38]}  b3 {[%clk 0:01:13]} 53. Kc3+ {[%clk 0:01:28]}  Ka3 {[%clk 0:01:13]} 54. Re8 {[%clk 0:01:28]}  Rc5+ {[%clk 0:01:12]} 55. Kd4 {[%clk 0:01:28]}  Rc7 {[%clk 0:01:10]} 56. Ra8+ {[%clk 0:01:24]}  Kb2 {[%clk 0:01:11]} 57. Kd3 {[%clk 0:01:22]}  Kb1 {[%clk 0:01:10]} 58. Kd2 {[%clk 0:01:21]}  b2 {[%clk 0:01:10]} 59. Rh8 {[%clk 0:01:17]}  Ra7 {[%clk 0:01:09]} 60. Rh2 {[%clk 0:01:11]}  Ka1 {[%clk 0:01:08]} 0-1


[Site "https://www.chess.com"]

[Event "Titled Tuesday Blitz December 14 2021"]
[White "Mitrabha, Guha"]
[Black "Suvorov, Alexander"]
[WhiteFideId "5057000"]
[BlackFideId "12977063"]
[WhiteElo "2370"]
[BlackElo "2221"]
[Result "0-1"]
[Round "05"]
[TimeControl "180+1"]
[Date "2021.12.15"]
[WhiteClock "0:00:10"]
[BlackClock "0:00:35"]

1. d4 {[%clk 0:02:56]}  Nf6 {[%clk 0:02:59]} 2. Nf3 {[%clk 0:02:56]}  d5 {[%clk 0:02:57]} 3. Bf4 {[%clk 0:02:56]}  c5 {[%clk 0:02:56]} 4. e3 {[%clk 0:02:56]}  Nc6 {[%clk 0:02:57]} 5. Nbd2 {[%clk 0:02:56]}  cxd4 {[%clk 0:02:54]} 6. exd4 {[%clk 0:02:46]}  Qb6 {[%clk 0:02:54]} 7. Nb3 {[%clk 0:02:46]}  Bf5 {[%clk 0:02:55]} 8. a4 {[%clk 0:02:44]}  a6 {[%clk 0:02:41]} 9. a5 {[%clk 0:02:44]}  Qd8 {[%clk 0:02:40]} 10. c3 {[%clk 0:02:43]}  e6 {[%clk 0:02:40]} 11. Bd3 {[%clk 0:02:43]}  Bxd3 {[%clk 0:02:35]} 12. Qxd3 {[%clk 0:02:44]}  Be7 {[%clk 0:02:34]} 13. O-O {[%clk 0:02:38]}  O-O {[%clk 0:02:34]} 14. Rfe1 {[%clk 0:02:37]}  h6 {[%clk 0:02:33]} 15. Bg3 {[%clk 0:02:22]}  Ne4 {[%clk 0:02:26]} 16. Nfd2 {[%clk 0:02:20]}  Nxg3 {[%clk 0:02:20]} 17. hxg3 {[%clk 0:02:19]}  Bd6 {[%clk 0:02:14]} 18. Nf3 {[%clk 0:02:07]}  Rb8 {[%clk 0:02:14]} 19. Ra2 {[%clk 0:02:06]}  Qc7 {[%clk 0:01:58]} 20. Rea1 {[%clk 0:02:03]}  Rfc8 {[%clk 0:01:54]} 21. Nbd2 {[%clk 0:01:53]}  Ne7 {[%clk 0:01:51]} 22. Rc1 {[%clk 0:01:51]}  Qd7 {[%clk 0:01:46]} 23. Qb1 {[%clk 0:01:41]}  Qb5 {[%clk 0:01:40]} 24. b4 {[%clk 0:01:33]}  Rc7 {[%clk 0:01:33]} 25. Nb3 {[%clk 0:01:33]}  Ng6 {[%clk 0:01:25]} 26. Nc5 {[%clk 0:01:32]}  e5 {[%clk 0:01:26]} 27. dxe5 {[%clk 0:01:15]}  Bxc5 {[%clk 0:01:07]} 28. bxc5 {[%clk 0:00:59]}  Qxb1 {[%clk 0:01:04]} 29. Rxb1 {[%clk 0:00:58]}  Rxc5 {[%clk 0:01:05]} 30. Rab2 {[%clk 0:00:58]}  Rxa5 {[%clk 0:01:00]} 31. Rxb7 {[%clk 0:00:58]}  Rxb7 {[%clk 0:01:01]} 32. Rxb7 {[%clk 0:00:59]}  Rc5 {[%clk 0:01:01]} 33. Nd4 {[%clk 0:00:56]}  Nxe5 {[%clk 0:00:57]} 34. Nf5 {[%clk 0:00:53]}  Rxc3 {[%clk 0:00:46]} 35. Ne7+ {[%clk 0:00:53]}  Kh7 {[%clk 0:00:44]} 36. f3 {[%clk 0:00:51]}  d4 {[%clk 0:00:43]} 37. Nf5 {[%clk 0:00:32]}  d3 {[%clk 0:00:41]} 38. Kf2 {[%clk 0:00:10]}  Rc2+ {[%clk 0:00:39]} 39. Ke1 {[%clk 0:00:10]}  Rxg2 {[%clk 0:00:35]} 40. f4 {[%clk 0:00:10]}  Nf3+ {[%clk 0:00:35]} 0-1


[Site "https://www.chess.com"]

[Event "Titled Tuesday Blitz December 14 2021"]
[White "Nesterov, Arseniy"]
[Black "Donchenko, Alexander"]
[WhiteFideId "24198455"]
[BlackFideId "24603295"]
[WhiteElo "2489"]
[BlackElo "2494"]
[Result "0-1"]
[Round "05"]
[TimeControl "180+1"]
[Date "2021.12.14"]
[WhiteClock "0:00:06"]
[BlackClock "0:00:07"]

1. d4 {[%clk 0:03:00]}  Nf6 {[%clk 0:02:59]} 2. c4 {[%clk 0:03:00]}  e6 {[%clk 0:03:00]} 3. Nc3 {[%clk 0:02:58]}  Bb4 {[%clk 0:03:00]} 4. Qc2 {[%clk 0:02:58]}  d5 {[%clk 0:02:59]} 5. Nf3 {[%clk 0:02:56]}  dxc4 {[%clk 0:02:53]} 6. e4 {[%clk 0:02:53]}  b5 {[%clk 0:02:50]} 7. a4 {[%clk 0:02:51]}  c6 {[%clk 0:02:49]} 8. Be2 {[%clk 0:02:48]}  Bb7 {[%clk 0:02:45]} 9. O-O {[%clk 0:02:47]}  a6 {[%clk 0:02:45]} 10. Bg5 {[%clk 0:02:43]}  h6 {[%clk 0:02:44]} 11. Bh4 {[%clk 0:02:43]}  g5 {[%clk 0:02:36]} 12. Bg3 {[%clk 0:02:42]}  Nbd7 {[%clk 0:02:36]} 13. e5 {[%clk 0:02:31]}  Nh5 {[%clk 0:02:28]} 14. Ne4 {[%clk 0:02:23]}  Be7 {[%clk 0:02:18]} 15. Nfd2 {[%clk 0:02:08]}  Ng7 {[%clk 0:01:58]} 16. b3 {[%clk 0:01:53]}  Nf5 {[%clk 0:01:57]} 17. Qb2 {[%clk 0:01:36]}  Nb6 {[%clk 0:01:43]} 18. Nd6+ {[%clk 0:01:02]}  Bxd6 {[%clk 0:01:28]} 19. exd6 {[%clk 0:01:03]}  Nxg3 {[%clk 0:01:19]} 20. hxg3 {[%clk 0:01:00]}  Qxd6 {[%clk 0:01:18]} 21. bxc4 {[%clk 0:00:59]}  Nxa4 {[%clk 0:00:59]} 22. Rxa4 {[%clk 0:00:50]}  bxa4 {[%clk 0:00:59]} 23. Qxb7 {[%clk 0:00:37]}  O-O {[%clk 0:01:00]} 24. Qb2 {[%clk 0:00:35]}  Rfd8 {[%clk 0:00:50]} 25. Nf3 {[%clk 0:00:25]}  g4 {[%clk 0:00:37]} 26. Ne5 {[%clk 0:00:06]}  Qxd4 {[%clk 0:00:37]} 27. Qxd4 {[%clk 0:00:06]}  Rxd4 {[%clk 0:00:38]} 28. Nxc6 {[%clk 0:00:07]}  Rd2 {[%clk 0:00:35]} 29. Bxg4 {[%clk 0:00:07]}  a3 {[%clk 0:00:33]} 30. Ra1 {[%clk 0:00:08]}  a2 {[%clk 0:00:26]} 31. Nb4 {[%clk 0:00:08]}  Rc8 {[%clk 0:00:25]} 32. Rxa2 {[%clk 0:00:04]}  Rxa2 {[%clk 0:00:24]} 33. Nxa2 {[%clk 0:00:05]}  Rxc4 {[%clk 0:00:24]} 34. Bf3 {[%clk 0:00:04]}  a5 {[%clk 0:00:23]} 35. Bd1 {[%clk 0:00:05]}  Rd4 {[%clk 0:00:19]} 36. Bb3 {[%clk 0:00:04]}  Rd3 {[%clk 0:00:18]} 37. Bc4 {[%clk 0:00:03]}  Rd1+ {[%clk 0:00:16]} 38. Kh2 {[%clk 0:00:03]}  Rd2 {[%clk 0:00:15]} 39. f4 {[%clk 0:00:03]}  a4 {[%clk 0:00:14]} 40. Nc3 {[%clk 0:00:02]}  Rc2 {[%clk 0:00:14]} 41. Nxa4 {[%clk 0:00:02]}  Rxc4 {[%clk 0:00:14]} 42. Nb6 {[%clk 0:00:03]}  Rd4 {[%clk 0:00:14]} 43. Nc8 {[%clk 0:00:03]}  Kf8 {[%clk 0:00:14]} 44. Na7 {[%clk 0:00:03]}  Rc4 {[%clk 0:00:09]} 45. Nb5 {[%clk 0:00:04]}  Ke7 {[%clk 0:00:09]} 46. Na3 {[%clk 0:00:04]}  Rc3 {[%clk 0:00:08]} 47. Nb5 {[%clk 0:00:03]}  Rd3 {[%clk 0:00:08]} 48. Kg1 {[%clk 0:00:03]}  Kd7 {[%clk 0:00:07]} 49. Kf2 {[%clk 0:00:04]}  Kc6 {[%clk 0:00:08]} 50. Ke2 {[%clk 0:00:04]}  Rxg3 {[%clk 0:00:07]} 51. Nd4+ {[%clk 0:00:04]}  Kd5 {[%clk 0:00:08]} 52. Kf2 {[%clk 0:00:05]}  Rxg2+ {[%clk 0:00:06]} 53. Kxg2 {[%clk 0:00:06]}  Kxd4 {[%clk 0:00:07]} 54. f5 {[%clk 0:00:06]}  exf5 {[%clk 0:00:07]} 0-1


[Site "https://www.chess.com"]

[Event "Titled Tuesday Blitz December 14 2021"]
[White "Panesar Vedant"]
[Black "Babazada, Khazar"]
[WhiteFideId "35033018"]
[BlackFideId "13413554"]
[WhiteElo "1971"]
[BlackElo "2302"]
[Result "0-1"]
[Round "05"]
[TimeControl "180+1"]
[Date "2021.12.14"]
[WhiteClock "0:01:36"]
[BlackClock "0:01:26"]

1. d4 {[%clk 0:02:51]}  Nf6 {[%clk 0:03:00]} 2. c4 {[%clk 0:02:47]}  g6 {[%clk 0:03:00]} 3. Nc3 {[%clk 0:02:47]}  Bg7 {[%clk 0:03:00]} 4. e4 {[%clk 0:02:48]}  d6 {[%clk 0:02:59]} 5. Nf3 {[%clk 0:02:48]}  O-O {[%clk 0:03:00]} 6. Be2 {[%clk 0:02:49]}  Bg4 {[%clk 0:02:58]} 7. O-O {[%clk 0:02:48]}  Nfd7 {[%clk 0:02:55]} 8. Be3 {[%clk 0:02:48]}  Bxf3 {[%clk 0:02:54]} 9. Bxf3 {[%clk 0:02:48]}  e5 {[%clk 0:02:55]} 10. d5 {[%clk 0:02:40]}  a5 {[%clk 0:02:54]} 11. a3 {[%clk 0:02:35]}  Na6 {[%clk 0:02:49]} 12. Rb1 {[%clk 0:02:36]}  f5 {[%clk 0:02:47]} 13. exf5 {[%clk 0:02:35]}  gxf5 {[%clk 0:02:48]} 14. Be2 {[%clk 0:02:36]}  e4 {[%clk 0:02:42]} 15. Bd4 {[%clk 0:02:12]}  Qg5 {[%clk 0:02:38]} 16. Nb5 {[%clk 0:02:12]}  Rac8 {[%clk 0:02:31]} 17. Bxg7 {[%clk 0:02:11]}  Qxg7 {[%clk 0:02:32]} 18. Nd4 {[%clk 0:02:12]}  Rf6 {[%clk 0:02:16]} 19. Ne6 {[%clk 0:02:09]}  Qh6 {[%clk 0:02:10]} 20. b4 {[%clk 0:02:08]}  Kh8 {[%clk 0:02:07]} 21. Qd4 {[%clk 0:02:05]}  Rg8 {[%clk 0:02:04]} 22. Rb3 {[%clk 0:02:05]}  f4 {[%clk 0:01:40]} 23. Rh3 {[%clk 0:01:59]}  Qxh3 {[%clk 0:01:39]} 24. Qxe4 {[%clk 0:01:50]}  Rh6 {[%clk 0:01:34]} 25. Bh5 {[%clk 0:01:36]}  Rxh5 {[%clk 0:01:26]} 0-1


[Site "https://www.chess.com"]

[Event "Titled Tuesday Blitz December 14 2021"]
[White "Papasimakopoulos, Alexandros"]
[Black "Willow, Jonah B"]
[WhiteFideId "4244125"]
[BlackFideId "438804"]
[WhiteElo "2394"]
[BlackElo "2261"]
[Result "0-1"]
[Round "05"]
[TimeControl "180+1"]
[Date "2021.12.14"]
[WhiteClock "0:00:06"]
[BlackClock "0:01:06"]

1. d4 {[%clk 0:03:00]}  Nf6 {[%clk 0:03:00]} 2. c4 {[%clk 0:03:00]}  e6 {[%clk 0:02:59]} 3. Nc3 {[%clk 0:03:01]}  c5 {[%clk 0:03:00]} 4. d5 {[%clk 0:03:01]}  exd5 {[%clk 0:03:01]} 5. cxd5 {[%clk 0:03:02]}  d6 {[%clk 0:03:02]} 6. Nf3 {[%clk 0:03:02]}  g6 {[%clk 0:03:02]} 7. Bf4 {[%clk 0:03:02]}  Bg7 {[%clk 0:03:01]} 8. Qa4+ {[%clk 0:03:01]}  Bd7 {[%clk 0:03:01]} 9. Qb3 {[%clk 0:03:02]}  Qc7 {[%clk 0:03:02]} 10. e4 {[%clk 0:03:01]}  O-O {[%clk 0:03:01]} 11. Be2 {[%clk 0:03:01]}  b5 {[%clk 0:02:53]} 12. Bxb5 {[%clk 0:02:54]}  Nxe4 {[%clk 0:02:52]} 13. O-O {[%clk 0:02:26]}  Nxc3 {[%clk 0:02:50]} 14. bxc3 {[%clk 0:02:27]}  Bxb5 {[%clk 0:02:50]} 15. Qxb5 {[%clk 0:02:27]}  a6 {[%clk 0:02:50]} 16. Qd3 {[%clk 0:02:12]}  Nd7 {[%clk 0:02:49]} 17. Rab1 {[%clk 0:02:04]}  Rfe8 {[%clk 0:02:41]} 18. c4 {[%clk 0:01:58]}  Ne5 {[%clk 0:02:29]} 19. Nxe5 {[%clk 0:01:57]}  Bxe5 {[%clk 0:02:30]} 20. Bg3 {[%clk 0:01:55]}  Qa5 {[%clk 0:02:26]} 21. a3 {[%clk 0:01:34]}  Re7 {[%clk 0:02:22]} 22. Rfe1 {[%clk 0:01:15]}  Rae8 {[%clk 0:02:20]} 23. Bxe5 {[%clk 0:01:15]}  Rxe5 {[%clk 0:02:19]} 24. Rxe5 {[%clk 0:01:15]}  Rxe5 {[%clk 0:02:20]} 25. g3 {[%clk 0:01:16]}  h5 {[%clk 0:02:13]} 26. h4 {[%clk 0:01:13]}  Kg7 {[%clk 0:02:04]} 27. Kg2 {[%clk 0:01:13]}  Qc7 {[%clk 0:01:58]} 28. Qc3 {[%clk 0:01:02]}  Kg8 {[%clk 0:01:59]} 29. Qb2 {[%clk 0:00:57]}  Re4 {[%clk 0:01:56]} 30. Qb7 {[%clk 0:00:54]}  Qxb7 {[%clk 0:01:53]} 31. Rxb7 {[%clk 0:00:55]}  Rxc4 {[%clk 0:01:54]} 32. Rb6 {[%clk 0:00:55]}  Ra4 {[%clk 0:01:51]} 33. Rxd6 {[%clk 0:00:55]}  Rxa3 {[%clk 0:01:46]} 34. Rc6 {[%clk 0:00:55]}  Kg7 {[%clk 0:01:41]} 35. Rxc5 {[%clk 0:00:54]}  Kf6 {[%clk 0:01:42]} 36. Rc7 {[%clk 0:00:54]}  a5 {[%clk 0:01:40]} 37. d6 {[%clk 0:00:54]}  a4 {[%clk 0:01:40]} 38. Ra7 {[%clk 0:00:53]}  Ke6 {[%clk 0:01:39]} 39. d7 {[%clk 0:00:52]}  Ke7 {[%clk 0:01:40]} 40. d8=Q+ {[%clk 0:00:52]}  Kxd8 {[%clk 0:01:39]} 41. Rxf7 {[%clk 0:00:52]}  Rb3 {[%clk 0:01:33]} 42. Ra7 {[%clk 0:00:51]}  a3 {[%clk 0:01:34]} 43. Ra6 {[%clk 0:00:52]}  Kc7 {[%clk 0:01:31]} 44. f3 {[%clk 0:00:20]}  Kb7 {[%clk 0:01:30]} 45. Ra4 {[%clk 0:00:20]}  Kb6 {[%clk 0:01:27]} 46. g4 {[%clk 0:00:21]}  Kb5 {[%clk 0:01:27]} 47. Ra8 {[%clk 0:00:21]}  Kb4 {[%clk 0:01:17]} 48. Kg3 {[%clk 0:00:22]}  Rc3 {[%clk 0:01:13]} 49. Kf4 {[%clk 0:00:20]}  Rc5 {[%clk 0:01:12]} 50. Rb8+ {[%clk 0:00:13]}  Rb5 {[%clk 0:01:13]} 51. Re8 {[%clk 0:00:10]}  a2 {[%clk 0:01:12]} 52. Re1 {[%clk 0:00:10]}  Ka3 {[%clk 0:01:09]} 53. Re3+ {[%clk 0:00:09]}  Rb3 {[%clk 0:01:08]} 54. Re1 {[%clk 0:00:06]}  Rb1 {[%clk 0:01:08]} 55. Re4 {[%clk 0:00:06]}  a1=Q {[%clk 0:01:06]} 0-1


[Site "https://www.chess.com"]

[Event "Titled Tuesday Blitz December 14 2021"]
[White "Paravyan, David"]
[Black "Blohberger, Felix"]
[WhiteFideId "4194985"]
[BlackFideId "1632051"]
[WhiteElo "2656"]
[BlackElo "2416"]
[Result "1/2-1/2"]
[Round "05"]
[TimeControl "180+1"]
[Date "2021.12.14"]
[WhiteClock "0:00:05"]
[BlackClock "0:00:06"]

1. e4 {[%clk 0:03:00]}  Nf6 {[%clk 0:02:57]} 2. e5 {[%clk 0:03:00]}  Nd5 {[%clk 0:02:57]} 3. d4 {[%clk 0:03:00]}  d6 {[%clk 0:02:58]} 4. c4 {[%clk 0:03:01]}  Nb6 {[%clk 0:02:58]} 5. f4 {[%clk 0:03:01]}  dxe5 {[%clk 0:02:57]} 6. fxe5 {[%clk 0:03:02]}  Nc6 {[%clk 0:02:58]} 7. Be3 {[%clk 0:03:01]}  Bf5 {[%clk 0:02:57]} 8. Nc3 {[%clk 0:03:00]}  e6 {[%clk 0:02:55]} 9. Nf3 {[%clk 0:03:00]}  Be7 {[%clk 0:02:51]} 10. Be2 {[%clk 0:03:00]}  O-O {[%clk 0:02:49]} 11. O-O {[%clk 0:02:58]}  f6 {[%clk 0:02:46]} 12. exf6 {[%clk 0:02:56]}  Bxf6 {[%clk 0:02:46]} 13. Qd2 {[%clk 0:02:47]}  Qe8 {[%clk 0:02:39]} 14. Rad1 {[%clk 0:02:45]}  Rd8 {[%clk 0:02:36]} 15. Qc1 {[%clk 0:02:45]}  Qg6 {[%clk 0:02:33]} 16. Kh1 {[%clk 0:02:33]}  Rd7 {[%clk 0:02:26]} 17. b3 {[%clk 0:02:26]}  Rfd8 {[%clk 0:02:20]} 18. d5 {[%clk 0:02:24]}  exd5 {[%clk 0:02:19]} 19. Nxd5 {[%clk 0:02:17]}  Nxd5 {[%clk 0:02:17]} 20. Rxd5 {[%clk 0:02:11]}  Be4 {[%clk 0:02:08]} 21. Rxd7 {[%clk 0:02:08]}  Rxd7 {[%clk 0:02:09]} 22. Qe1 {[%clk 0:01:56]}  h6 {[%clk 0:02:06]} 23. Qf2 {[%clk 0:01:55]}  a6 {[%clk 0:02:05]} 24. h3 {[%clk 0:01:55]}  Kh7 {[%clk 0:02:02]} 25. Kh2 {[%clk 0:01:42]}  Ne5 {[%clk 0:01:45]} 26. Bf4 {[%clk 0:01:37]}  Bxf3 {[%clk 0:01:29]} 27. Bxf3 {[%clk 0:01:26]}  Nxf3+ {[%clk 0:01:16]} 28. Qxf3 {[%clk 0:01:24]}  c6 {[%clk 0:01:16]} 29. Rd1 {[%clk 0:01:16]}  Rxd1 {[%clk 0:01:14]} 30. Qxd1 {[%clk 0:01:17]}  Qe4 {[%clk 0:01:14]} 31. Qd2 {[%clk 0:01:11]}  Be5 {[%clk 0:00:46]} 32. Bxe5 {[%clk 0:01:10]}  Qxe5+ {[%clk 0:00:47]} 33. Kg1 {[%clk 0:01:11]}  Qe4 {[%clk 0:00:47]} 34. Kf2 {[%clk 0:01:12]}  Kg6 {[%clk 0:00:45]} 35. Qc3 {[%clk 0:01:01]}  Qf4+ {[%clk 0:00:42]} 36. Ke2 {[%clk 0:00:59]}  Qe4+ {[%clk 0:00:41]} 37. Kf2 {[%clk 0:00:58]}  Qf4+ {[%clk 0:00:40]} 38. Kg1 {[%clk 0:00:57]}  Qe4 {[%clk 0:00:39]} 39. a4 {[%clk 0:00:55]}  a5 {[%clk 0:00:35]} 40. c5 {[%clk 0:00:49]}  Qb4 {[%clk 0:00:30]} 41. Qd3+ {[%clk 0:00:35]}  Kf7 {[%clk 0:00:29]} 42. Qe3 {[%clk 0:00:31]}  Kg8 {[%clk 0:00:28]} 43. Kf2 {[%clk 0:00:30]}  Qh4+ {[%clk 0:00:26]} 44. Kf3 {[%clk 0:00:29]}  Qh5+ {[%clk 0:00:20]} 45. Kg3 {[%clk 0:00:25]}  Qd5 {[%clk 0:00:20]} 46. Qc3 {[%clk 0:00:23]}  Kf7 {[%clk 0:00:18]} 47. Kf2 {[%clk 0:00:22]}  Qf5+ {[%clk 0:00:16]} 48. Ke3 {[%clk 0:00:20]}  Qe6+ {[%clk 0:00:16]} 49. Kf4 {[%clk 0:00:18]}  Qf6+ {[%clk 0:00:09]} 50. Qxf6+ {[%clk 0:00:17]}  Kxf6 {[%clk 0:00:10]} 51. h4 {[%clk 0:00:17]}  g6 {[%clk 0:00:06]} 52. Ke4 {[%clk 0:00:13]}  Ke6 {[%clk 0:00:06]} 53. g4 {[%clk 0:00:06]}  Kf6 {[%clk 0:00:07]} 54. Kd4 {[%clk 0:00:06]}  Ke6 {[%clk 0:00:06]} 55. Ke4 {[%clk 0:00:06]}  Kf6 {[%clk 0:00:06]} 56. Kf4 {[%clk 0:00:06]}  Ke6 {[%clk 0:00:06]} 57. Ke4 {[%clk 0:00:05]} 1/2-1/2


[Site "https://www.chess.com"]

[Event "Titled Tuesday Blitz December 14 2021"]
[White "Petrovskyi, Vadym"]
[Black "Belous, Vladimir"]
[WhiteFideId "14165210"]
[BlackFideId "4174003"]
[WhiteElo "2377"]
[BlackElo "2510"]
[Result "0-1"]
[Round "05"]
[TimeControl "180+1"]
[Date "2021.12.14"]
[WhiteClock "0:00:17"]
[BlackClock "0:01:02"]

1. e4 {[%clk 0:03:00]}  c5 {[%clk 0:02:58]} 2. Nf3 {[%clk 0:03:00]}  Nc6 {[%clk 0:02:58]} 3. d4 {[%clk 0:03:00]}  cxd4 {[%clk 0:02:57]} 4. Nxd4 {[%clk 0:03:01]}  e5 {[%clk 0:02:58]} 5. Nb5 {[%clk 0:03:01]}  d6 {[%clk 0:02:58]} 6. N1c3 {[%clk 0:03:02]}  a6 {[%clk 0:02:58]} 7. Na3 {[%clk 0:03:02]}  b5 {[%clk 0:02:59]} 8. Nd5 {[%clk 0:03:02]}  Nge7 {[%clk 0:02:54]} 9. c4 {[%clk 0:03:02]}  Nxd5 {[%clk 0:02:54]} 10. exd5 {[%clk 0:02:59]}  Nd4 {[%clk 0:02:54]} 11. cxb5 {[%clk 0:02:58]}  g6 {[%clk 0:02:54]} 12. Be3 {[%clk 0:02:57]}  Bg7 {[%clk 0:02:55]} 13. bxa6 {[%clk 0:02:54]}  O-O {[%clk 0:02:55]} 14. Bd3 {[%clk 0:02:45]}  e4 {[%clk 0:02:44]} 15. Bc4 {[%clk 0:02:16]}  Nf5 {[%clk 0:02:20]} 16. Qd2 {[%clk 0:02:11]}  Nxe3 {[%clk 0:02:16]} 17. fxe3 {[%clk 0:02:10]}  Qb6 {[%clk 0:02:08]} 18. Rb1 {[%clk 0:02:07]}  Bh6 {[%clk 0:02:01]} 19. Nc2 {[%clk 0:02:05]}  Bxa6 {[%clk 0:02:00]} 20. Bxa6 {[%clk 0:02:04]}  Qxa6 {[%clk 0:01:56]} 21. a3 {[%clk 0:01:57]}  Rab8 {[%clk 0:01:48]} 22. Nb4 {[%clk 0:01:56]}  Qb6 {[%clk 0:01:45]} 23. Kf2 {[%clk 0:01:54]}  f5 {[%clk 0:01:45]} 24. Qd4 {[%clk 0:01:24]}  f4 {[%clk 0:01:45]} 25. Qxb6 {[%clk 0:01:08]}  fxe3+ {[%clk 0:01:45]} 26. Kg3 {[%clk 0:01:07]}  Rxb6 {[%clk 0:01:35]} 27. Rhf1 {[%clk 0:01:00]}  Rbb8 {[%clk 0:01:30]} 28. Rbe1 {[%clk 0:00:55]}  Rf5 {[%clk 0:01:23]} 29. Nc6 {[%clk 0:00:22]}  Rxf1 {[%clk 0:01:22]} 30. Rxf1 {[%clk 0:00:21]}  Rxb2 {[%clk 0:01:22]} 31. Nd4 {[%clk 0:00:20]}  Bg7 {[%clk 0:01:12]} 32. Nc6 {[%clk 0:00:18]}  e2 {[%clk 0:01:06]} 33. Ne7+ {[%clk 0:00:18]}  Kh8 {[%clk 0:01:07]} 34. Rc1 {[%clk 0:00:17]}  Bc3 {[%clk 0:01:02]} 0-1


[Site "https://www.chess.com"]